fUST/lending_fUST_20250421
["ID","MTS","AMOUNT","RATE_DAILY","PERIOD"]
[358543266,1745243448631,-500.0,0.00023835,2]
[358543268,1745243448640,-752.53,0.00023835,2]
[358543270,1745243448649,-500.0,0.00023835,2]
[358543272,1745243448658,-736.91,0.00023835,2]
[358543274,1745243448667,-500.0,0.00023835,2]
[358543276,1745243448675,-292.97980055,0.00023835,2]
[358543278,1745243448684,-500.0,0.00023835,2]
[358543280,1745243448693,-1438.62,0.00023835,2]
[358543282,1745243448702,-500.0,0.00023835,2]
[358543284,1745243448711,-3898.24,0.00023835,2]
[358543286,1745243448720,-1209.97,0.00023835,2]
[358543287,1745243448729,-151.0,0.000239,9]
[358543289,1745243448738,-500.0,0.00023916,2]
[358543291,1745243448747,-500.0,0.00023916,2]
[358543293,1745243448756,-724.52,0.00023916,2]
[358543295,1745243448764,-756.94,0.00023916,2]
[358543297,1745243448775,-500.0,0.00023916,2]
[358543299,1745243448783,-596.58,0.00023916,2]
[358543301,1745243448792,-6568.46,0.00023917,2]
[358543303,1745243448801,-420.0,0.00023928,2]
[358543305,1745243448810,-151.0,0.00024,8]
[358543307,1745243448819,-500.0,0.00024109,2]
[358543309,1745243448828,-480.0658614,0.00024109,2]
[358543311,1745243448837,-500.0,0.00024109,2]
[358543314,1745243448846,-500.0,0.00024109,2]
[358543316,1745243448855,-5202.56,0.00024109,2]
[358543317,1745243448864,-439.56,0.00024109,2]
[358543319,1745243448873,-1365.07,0.00024109,2]
[358543321,1745243448881,-500.0,0.00024109,2]
[358543323,1745243448890,-500.0,0.00024109,2]
[358543325,1745243448899,-500.0,0.00024109,2]
[358543327,1745243448908,-250.01037945,0.00024109,2]
[358543329,1745243448917,-849.44,0.00024109,2]
[358543331,1745243448927,-500.0,0.00024109,2]
[358543333,1745243448936,-2919.09,0.00024109,2]
[358543335,1745243448946,-500.0,0.00024109,2]
[358543337,1745243448958,-500.0,0.00024109,2]
[358543339,1745243448967,-500.0,0.00024109,2]
[358543341,1745243448977,-752.53,0.00024109,2]
[358543343,1745243448990,-434.04442622,0.00024109,2]
[358543345,1745243449002,-736.91,0.00024109,2]
[358543348,1745243449011,-500.0,0.00024109,2]
[358543350,1745243449020,-500.0,0.00024109,2]
[358543351,1745243449030,-1438.62,0.00024109,2]
[358543353,1745243449039,-500.0,0.00024109,2]
[358543355,1745243449049,-3898.24,0.00024109,2]
[358543357,1745243449058,-500.0,0.0002419,2]
[358543359,1745243449067,-500.0,0.0002419,2]
[358543362,1745243449077,-724.52,0.0002419,2]
[358543363,1745243449087,-756.94,0.0002419,2]
[358543365,1745243449096,-500.0,0.0002419,2]
[358543368,1745243449106,-596.58,0.0002419,2]
[358543370,1745243449116,-6568.46,0.00024191,2]
[358543372,1745243449127,-151.0,0.00024191,7]
[358543374,1745243449137,-151.0,0.00024191,7]
[358543376,1745243449146,-151.0,0.00024191,7]
[358543378,1745243449156,-151.0,0.00024191,7]
[358543380,1745243449165,-151.0,0.00024191,7]
[358543382,1745243449175,-151.0,0.00024191,7]
[358543384,1745243449184,-1465.77186,0.00024191,2]
[358543386,1745243449194,-1465.77186,0.00024191,2]
[358543388,1745243449204,-151.0,0.000242,6]
[358543390,1745243449214,-151.0,0.000243,8]
[358543392,1745243449224,-6856.63976717,0.00024382,3]
[358543394,1745243449234,-47375.23430401,0.00024383,2]
[358543396,1745243449243,-500.0,0.00024383,2]
[358543398,1745243449252,-500.0,0.00024383,2]
[358543400,1745243449262,-617.313101,0.00024383,2]
[358543402,1745243449272,-500.0,0.00024383,2]
[358543403,1745243449281,-500.0,0.00024383,2]
[358543406,1745243449291,-500.0,0.00024383,2]
[358543408,1745243449300,-5202.56,0.00024383,2]
[358543409,1745243449310,-1365.07,0.00024383,2]
[358543412,1745243449319,-849.44,0.00024383,2]
[358543414,1745243449328,-500.0,0.00024383,2]
[358543416,1745243449338,-2919.09,0.00024383,2]
[358543418,1745243449347,-500.0,0.00024383,2]
[358543420,1745243449357,-500.0,0.00024383,2]
[358543422,1745243449366,-248.76853017,0.00024383,2]
[358543424,1745243449375,-752.53,0.00024383,2]
[358543426,1745243449385,-736.91,0.00024383,2]
[358543428,1745243449394,-556.84,0.00024383,2]
[358543430,1745243449403,-500.0,0.00024383,2]
[358543432,1745243449412,-1438.62,0.00024383,2]
[358543434,1745243449421,-503.30168827,0.00024383,2]
[358543436,1745243449430,-3898.24,0.00024383,2]
[358543438,1745243449439,-500.0,0.00024464,2]
[358543440,1745243449448,-199.9,0.00024464,2]
[358543442,1745243449458,-724.52,0.00024464,2]
[358543444,1745243449467,-756.94,0.00024464,2]
[358543446,1745243449477,-151.0,0.00024464,7]
[358543448,1745243449486,-500.0,0.00024464,2]
[358543450,1745243449495,-209.310277,0.00024464,7]
[358543452,1745243449504,-209.310277,0.00024464,7]
[358543454,1745243449514,-596.58,0.00024464,2]
[358543456,1745243449523,-323.38424,0.00024464,7]
[358543458,1745243449532,-323.38424,0.00024464,7]
[358543460,1745243449541,-155.69835,0.00024464,7]
[358543462,1745243449550,-155.69835,0.00024464,7]
[358543464,1745243449559,-6568.46,0.00024465,2]
[358543466,1745243449568,-1461.11353953,0.00024486,5]
[358543468,1745243449577,-151.0,0.000245,7]
[358543469,1745243449586,-563.43736002,0.00024573,2]
[358543470,1745243449596,-151.0,0.000246,5]
[358543471,1745243449606,-45115.3987709,0.00024651,2]
[358543472,1745243449616,-151.0,0.00024657,7]
[358543473,1745243449625,-500.0,0.00024657,2]
[358543474,1745243449636,-151.0,0.00024657,7]
[358543475,1745243449645,-174.978393,0.00024657,7]
[358543476,1745243449655,-174.978393,0.00024657,7]
[358543477,1745243449664,-151.0,0.00024657,7]
[358543478,1745243449673,-151.63572232,0.00024657,2]
[358543479,1745243449682,-151.0,0.00024657,7]
[358543481,1745243449692,-500.0,0.00024657,2]
[358543483,1745243449702,-5202.56,0.00024657,2]
[358543485,1745243449711,-1365.07,0.00024657,2]
[358543487,1745243449720,-849.44,0.00024657,2]
[358543489,1745243449729,-189.489501,0.00024657,7]
[358543491,1745243449739,-500.0,0.00024657,2]
[358543493,1745243449748,-189.489501,0.00024657,7]
[358543495,1745243449758,-2919.09,0.00024657,2]
[358543497,1745243449767,-500.0,0.00024657,2]
[358543500,1745243449776,-500.0,0.00024657,2]
[358543502,1745243449785,-752.53,0.00024657,2]
[358543504,1745243449794,-736.91,0.00024657,2]
[358543506,1745243449803,-500.0,0.00024657,2]
[358543508,1745243449812,-1438.62,0.00024657,2]
[358543521,1745243449926,-3898.24,0.00024657,2]
[358543523,1745243449938,-977.8845713,0.00024658,4]
[358543526,1745243449950,-200.0,0.00024658,15]
[358543528,1745243449961,-494.34524344,0.00024658,2]
[358543530,1745243449970,-151.0,0.000247,5]
[358543532,1745243449979,-500.0,0.00024738,2]
[358543534,1745243449989,-724.52,0.00024738,2]
[358543536,1745243449998,-756.94,0.00024738,2]
[358543538,1745243450008,-500.0,0.00024738,2]
[358543540,1745243450017,-596.58,0.00024738,2]
[358543542,1745243450028,-6568.46,0.00024739,2]
[358543544,1745243450038,-271.46329901,0.00024739,2]
[358543546,1745243450047,-1502.51482479,0.000248,2]
[358543548,1745243450057,-151.0,0.000248,7]
[358543550,1745243450067,-151.0,0.000248,7]
[358543552,1745243450077,-151.0,0.000248,7]
[358543554,1745243450086,-151.0,0.000248,7]
[358543556,1745243450095,-174.978393,0.000248,7]
[358543558,1745243450104,-174.978393,0.000248,7]
[358543561,1745243450114,-151.0,0.000248,7]
[358543563,1745243450125,-209.310277,0.000248,7]
[358543565,1745243450135,-209.310277,0.000248,7]
[358543567,1745243450144,-151.0,0.000248,7]
[358543569,1745243450155,-254.997248,0.000248,7]
[358543571,1745243450165,-151.0,0.000248,7]
[358543573,1745243450175,-151.0,0.000248,7]
[358543575,1745243450184,-151.0,0.000248,7]
[358543577,1745243450193,-151.0,0.000248,7]
[358543579,1745243450202,-151.0,0.000248,7]
[358543581,1745243450211,-151.0,0.000248,7]
[358543583,1745243450221,-151.0,0.000248,7]
[358543585,1745243450230,-116645.294541,0.000248,2]
[358543587,1745243450239,-189.489501,0.000248,7]
[358543590,1745243450249,-189.489501,0.000248,7]
[358543592,1745243450259,-323.38424,0.000248,7]
[358543594,1745243450270,-323.38424,0.000248,7]
[358543596,1745243450279,-1465.77186,0.000248,2]
[358543598,1745243450288,-1465.77186,0.000248,2]
[358543600,1745243450298,-155.69835,0.000248,7]
[358543602,1745243450307,-155.69835,0.000248,7]
[358543604,1745243450316,-6139.22602849,0.0002485,2]
[358543606,1745243450326,-16630.451719,0.0002486,2]
[358543608,1745243450336,-16630.45171902,0.00024863,2]
[358543610,1745243450346,-16630.451719,0.00024877,2]
[358543613,1745243450355,-16630.451719,0.0002488,2]
[358543614,1745243450365,-16630.45171902,0.00024884,2]
[358543617,1745243450374,-16630.45171902,0.0002489,2]
[358543619,1745243450383,-151.0,0.0002489,7]
[358543621,1745243450392,-151.0,0.0002489,7]
[358543623,1745243450402,-151.0,0.0002489,7]
[358543625,1745243450411,-151.0,0.0002489,7]
[358543627,1745243450420,-151.0,0.0002489,7]
[358543629,1745243450429,-1465.77186,0.0002489,2]
[358543631,1745243450438,-1465.77186,0.0002489,2]
[358543633,1745243450448,-16630.451719,0.00024892,2]
[358543635,1745243450457,-16630.45171902,0.00024895,2]
[358543637,1745243450469,-151.0,0.000249,7]
[358543639,1745243450478,-248.375766,0.000249,7]
[358543641,1745243450487,-151.0,0.000249,7]
[358543643,1745243450495,-151.0,0.000249,7]
[358543645,1745243450505,-151.0,0.000249,7]
[358543647,1745243450514,-151.0,0.000249,7]
[358543649,1745243450523,-151.0,0.000249,7]
[358543651,1745243450532,-151.0,0.000249,7]
[358543653,1745243450541,-151.0,0.000249,7]
[358543655,1745243450550,-151.0,0.000249,7]
[358543657,1745243450559,-151.0,0.000249,7]
[358543659,1745243450568,-151.0,0.000249,7]
[358543661,1745243450577,-174.978393,0.000249,7]
[358543663,1745243450586,-174.978393,0.000249,7]
[358543665,1745243450595,-151.0,0.000249,7]
[358543667,1745243450604,-209.310277,0.000249,7]
[358543669,1745243450613,-209.310277,0.000249,7]
[358543671,1745243450621,-151.0,0.000249,7]
[358543673,1745243450630,-160.0,0.000249,7]
[358543675,1745243450638,-151.0,0.000249,7]
[358543677,1745243450647,-151.0,0.000249,7]
[358543679,1745243450656,-160.0,0.000249,7]
[358543681,1745243450664,-151.0,0.000249,7]
[358543683,1745243450673,-151.0,0.000249,7]
[358543685,1745243450682,-151.0,0.000249,7]
[358543687,1745243450691,-151.0,0.000249,7]
[358543689,1745243450700,-151.0,0.000249,7]
[358543691,1745243450709,-656903.536489,0.000249,2]
[358543693,1745243450720,-189.489501,0.000249,7]
[358543696,1745243450729,-189.489501,0.000249,7]
[358543698,1745243450738,-323.38424,0.000249,7]
[358543700,1745243450747,-323.38424,0.000249,7]
[358543702,1745243450756,-1465.77186,0.000249,2]
[358543704,1745243450765,-1465.77186,0.000249,2]
[358543706,1745243450774,-155.69835,0.000249,7]
[358543708,1745243450784,-155.69835,0.000249,7]
[358543710,1745243450793,-500.0,0.00024931,2]
[358543712,1745243450801,-500.0,0.00024931,2]
[358543714,1745243450810,-5202.56,0.00024931,2]
[358543716,1745243450819,-1365.07,0.00024931,2]
[358543718,1745243450829,-849.44,0.00024931,2]
[358543720,1745243450838,-565.77,0.00024931,2]
[358543722,1745243450847,-2919.09,0.00024931,2]
[358543724,1745243450856,-500.0,0.00024931,2]
[358543726,1745243450865,-500.0,0.00024931,2]
[358543728,1745243450874,-752.53,0.00024931,2]
[358543730,1745243450883,-736.91,0.00024931,2]
[358543732,1745243450891,-500.0,0.00024931,2]
[358543734,1745243450900,-1438.62,0.00024931,2]
[358543736,1745243450909,-3898.24,0.00024931,2]
[358543738,1745243450918,-151.0,0.00025,16]
[358543740,1745243450927,-669.14502794,0.00025,30]
[358543742,1745243450936,-500.0,0.00025012,2]
[358543744,1745243450945,-724.52,0.00025012,2]
[358543746,1745243450956,-756.94,0.00025012,2]
[358543748,1745243450967,-235.45036265,0.00025012,2]
[358543750,1745243450976,-596.58,0.00025012,2]
[358543752,1745243450984,-6568.46,0.00025013,2]
[358543754,1745243450994,-1005.49104591,0.00025154,2]
[358543756,1745243451003,-500.0,0.00025205,2]
[358543758,1745243451013,-244.7688705,0.00025205,2]
[358543760,1745243451022,-5202.56,0.00025205,2]
[358543762,1745243451033,-1365.07,0.00025205,2]
[358543764,1745243451043,-849.44,0.00025205,2]
[358543766,1745243451052,-2919.09,0.00025205,2]
[358543768,1745243451061,-500.0,0.00025205,2]
[358543770,1745243451070,-500.0,0.00025205,2]
[358543772,1745243451079,-752.53,0.00025205,2]
[358543774,1745243451088,-736.91,0.00025205,2]
[358543777,1745243451097,-500.0,0.00025205,2]
[358543779,1745243451107,-1438.62,0.00025205,2]
[358543781,1745243451117,-3898.24,0.00025205,2]
[358543783,1745243451126,-1461.11353953,0.00025279,5]
[358543785,1745243451135,-500.0,0.00025286,2]
[358543787,1745243451144,-724.52,0.00025286,2]
[358543789,1745243451153,-756.94,0.00025286,2]
[358543791,1745243451162,-596.58,0.00025286,2]
[358543793,1745243451171,-6568.46,0.00025287,2]
[358543795,1745243451181,-151.0,0.000253,17]
[358543797,1745243451190,-200.0,0.00025452,7]
[358543799,1745243451199,-259.25203759,0.00025452,7]
[358543801,1745243451208,-900.0,0.0002546,2]
[358543803,1745243451219,-900.0,0.00025469,3]
[358543805,1745243451227,-500.0,0.00025479,2]
[358543806,1745243451237,-5202.56,0.00025479,2]
[358543807,1745243451247,-1365.07,0.00025479,2]
[358543808,1745243451255,-849.44,0.00025479,2]
[358543809,1745243451265,-2919.09,0.00025479,2]
[358543810,1745243451274,-500.0,0.00025479,2]
[358543811,1745243451283,-533.8,0.00025479,2]
[358543812,1745243451292,-752.53,0.00025479,2]
[358543813,1745243451302,-736.91,0.00025479,2]
[358543814,1745243451311,-500.0,0.00025479,2]
[358543815,1745243451320,-1438.62,0.00025479,2]
[358543816,1745243451329,-15019.08774259,0.000255,2]
[358543818,1745243451338,-1000.0,0.000255,2]
[358543820,1745243451347,-306.42100845,0.0002556,2]
[358543822,1745243451356,-724.52,0.0002556,2]
[358543824,1745243451365,-756.94,0.0002556,2]
[358543826,1745243451375,-596.58,0.0002556,2]
[358543828,1745243451384,-6568.46,0.00025561,2]
[358543830,1745243451393,-151.0,0.000256,18]
[358543832,1745243451403,-500.0,0.00025753,2]
[358543834,1745243451412,-5202.56,0.00025753,2]
[358543836,1745243451422,-1365.07,0.00025753,2]
[358543839,1745243451432,-849.44,0.00025753,2]
[358543841,1745243451441,-2919.09,0.00025753,2]
[358543843,1745243451450,-191.65258523,0.00025753,2]
[358543845,1745243451459,-752.53,0.00025753,2]
[358543847,1745243451470,-736.91,0.00025753,2]
[358543849,1745243451479,-500.0,0.00025753,2]
[358543860,1745243451569,-1438.62,0.00025753,2]
[358543862,1745243451578,-155.0,0.00025767,2]
[358543864,1745243451588,-724.52,0.00025834,2]
[358543866,1745243451597,-756.94,0.00025834,2]
[358543868,1745243451606,-596.58,0.00025834,2]
[358543870,1745243451615,-6568.46,0.00025835,2]
[358543872,1745243451625,-587.0,0.00025883,2]
[358543874,1745243451635,-517.41566205,0.00026,2]
[358543876,1745243451644,-19900.0,0.00026,2]
[358543878,1745243451654,-7757.0,0.00026,2]
[358543880,1745243451664,-151.0,0.00026,7]
[358543882,1745243451674,-409.867543,0.00026,7]
[358543884,1745243451684,-151.0,0.00026,7]
[358543886,1745243451693,-151.0,0.00026,7]
[358543888,1745243451703,-151.0,0.00026,7]
[358543890,1745243451712,-151.0,0.00026,7]
[358543892,1745243451721,-228.182589,0.00026027,7]
[358543894,1745243451730,-151.0,0.00026027,7]
[358543896,1745243451740,-361.67787902,0.00026027,2]
[358543899,1745243451750,-151.0,0.00026027,7]
[358543901,1745243451759,-209.310277,0.00026027,7]
[358543903,1745243451768,-209.310277,0.00026027,7]
[358543905,1745243451777,-151.0,0.00026027,7]
[358543907,1745243451786,-151.0,0.00026027,7]
[358543909,1745243451795,-151.0,0.00026027,7]
[358543911,1745243451804,-5202.56,0.00026027,2]
[358543913,1745243451813,-151.0,0.00026027,7]
[358543915,1745243451822,-151.0,0.00026027,7]
[358543917,1745243451831,-151.0,0.00026027,7]
[358543919,1745243451840,-151.0,0.00026027,7]
[358543921,1745243451849,-1365.07,0.00026027,2]
[358543923,1745243451858,-849.44,0.00026027,2]
[358543925,1745243451868,-2919.09,0.00026027,2]
[358543927,1745243451878,-752.53,0.00026027,2]
[358543929,1745243451887,-323.38424,0.00026027,7]
[358543930,1745243451896,-736.91,0.00026027,2]
[358543932,1745243451905,-323.38424,0.00026027,7]
[358543934,1745243451915,-500.0,0.00026027,2]
[358543936,1745243451923,-1465.77186,0.00026027,2]
[358543938,1745243451932,-1465.77186,0.00026027,2]
[358543940,1745243451942,-155.69835,0.00026027,7]
[358543942,1745243451953,-155.69835,0.00026027,7]
[358543944,1745243451962,-1438.62,0.00026027,2]
[358543947,1745243451972,-1461.11353953,0.00026072,6]
[358543948,1745243451981,-175.885012,0.00026107,7]
[358543950,1745243451991,-151.0,0.00026107,7]
[358543953,1745243452000,-189.489501,0.00026107,7]
[358543955,1745243452009,-189.489501,0.00026107,7]
[358543957,1745243452020,-724.52,0.00026108,2]
[358543959,1745243452031,-756.94,0.00026108,2]
[358543961,1745243452040,-174.978393,0.00026108,7]
[358543963,1745243452049,-174.978393,0.00026108,7]
[358543965,1745243452059,-596.58,0.00026108,2]
[358543967,1745243452068,-6568.46,0.00026109,2]
[358543969,1745243452077,-587.0,0.00026126,2]
[358543971,1745243452086,-5202.56,0.00026301,2]
[358543973,1745243452095,-1365.07,0.00026301,2]
[358543975,1745243452105,-849.44,0.00026301,2]
[358543977,1745243452114,-2919.09,0.00026301,2]
[358543979,1745243452122,-752.53,0.00026301,2]
[358543981,1745243452131,-736.91,0.00026301,2]
[358543983,1745243452141,-500.0,0.00026301,2]
[358543985,1745243452150,-1438.62,0.00026301,2]
[358543987,1745243452159,-265.85642887,0.00026315,2]
[358543989,1745243452168,-724.52,0.00026382,2]
[358543991,1745243452178,-756.94,0.00026382,2]
[358543993,1745243452187,-596.58,0.00026382,2]
[358543995,1745243452196,-6568.46,0.00026383,2]
[358543997,1745243452205,-5202.56,0.00026575,2]
[358543999,1745243452215,-1365.07,0.00026575,2]
[358544001,1745243452225,-849.44,0.00026575,2]
[358544003,1745243452234,-2919.09,0.00026575,2]
[358544005,1745243452243,-752.53,0.00026575,2]
[358544007,1745243452253,-736.91,0.00026575,2]
[358544009,1745243452262,-500.0,0.00026575,2]
[358544011,1745243452271,-1438.62,0.00026575,2]
[358544013,1745243452280,-724.52,0.00026656,2]
[358544016,1745243452290,-756.94,0.00026656,2]
[358544018,1745243452299,-596.58,0.00026656,2]
[358544020,1745243452308,-6568.46,0.00026657,2]
[358544022,1745243452318,-500.0,0.00026773,2]
[358544024,1745243452326,-102632.22736617,0.000268,4]
[358544026,1745243452336,-151.0,0.000268,7]
[358544028,1745243452345,-151.0,0.000268,7]
[358544030,1745243452354,-179.114353,0.000268,7]
[358544032,1745243452363,-151.0,0.000268,7]
[358544034,1745243452371,-151.0,0.000268,7]
[358544036,1745243452381,-151.0,0.000268,7]
[358544038,1745243452390,-151.0,0.000268,7]
[358544040,1745243452399,-255.477118,0.000268,7]
[358544042,1745243452408,-255.477118,0.000268,7]
[358544044,1745243452417,-151.0,0.000268,7]
[358544046,1745243452426,-151.0,0.000268,7]
[358544048,1745243452435,-151.0,0.000268,7]
[358544050,1745243452445,-1222.237892,0.000268,7]
[358544052,1745243452454,-409.867543,0.000268,7]
[358544054,1745243452464,-151.0,0.000268,7]
[358544056,1745243452473,-151.0,0.000268,7]
[358544058,1745243452482,-151.0,0.000268,7]
[358544060,1745243452491,-151.0,0.000268,7]
[358544062,1745243452499,-209.310277,0.000268,7]
[358544064,1745243452508,-209.310277,0.000268,7]
[358544066,1745243452517,-151.0,0.000268,7]
[358544068,1745243452527,-151.0,0.000268,7]
[358544070,1745243452536,-152.59289,0.000268,7]
[358544072,1745243452545,-225.843122,0.000268,7]
[358544074,1745243452554,-151.0,0.000268,7]
[358544076,1745243452563,-151.0,0.000268,7]
[358544078,1745243452573,-151.0,0.000268,7]
[358544080,1745243452583,-151.0,0.000268,7]
[358544082,1745243452592,-189.489501,0.000268,7]
[358544084,1745243452602,-189.489501,0.000268,7]
[358544086,1745243452611,-323.38424,0.000268,7]
[358544088,1745243452620,-323.38424,0.000268,7]
[358544090,1745243452629,-1465.77186,0.000268,2]
[358544092,1745243452638,-1465.77186,0.000268,2]
[358544094,1745243452647,-155.69835,0.000268,7]
[358544096,1745243452656,-155.69835,0.000268,7]
[358544098,1745243452666,-174.978393,0.00026849,7]
[358544100,1745243452675,-174.978393,0.00026849,7]
[358544102,1745243452684,-5202.56,0.00026849,2]
[358544104,1745243452694,-1365.07,0.00026849,2]
[358544106,1745243452703,-849.44,0.00026849,2]
[358544108,1745243452713,-2919.09,0.00026849,2]
[358544110,1745243452722,-752.53,0.00026849,2]
[358544112,1745243452731,-736.91,0.00026849,2]
[358544114,1745243452741,-500.0,0.00026849,2]
[358544116,1745243452750,-1438.62,0.00026849,2]
[358544118,1745243452759,-1461.11353953,0.00026866,7]
[358544120,1745243452768,-724.52,0.0002693,2]
[358544121,1745243452777,-756.94,0.0002693,2]
[358544122,1745243452786,-596.58,0.0002693,2]
[358544123,1745243452795,-6568.46,0.00026931,2]
[358544124,1745243452805,-3657.21139561,0.00027,2]
[358544125,1745243452814,-339.40491329,0.00027,2]
[358544126,1745243452823,-312.84021666,0.00027,3]
[358544127,1745243452833,-312.84021666,0.00027,3]
[358544128,1745243452843,-1200.0,0.00027104,2]
[358544129,1745243452852,-5202.56,0.00027123,2]
[358544130,1745243452861,-1365.07,0.00027123,2]
[358544132,1745243452870,-849.44,0.00027123,2]
[358544134,1745243452879,-2919.09,0.00027123,2]
[358544136,1745243452889,-752.53,0.00027123,2]
[358544138,1745243452898,-736.91,0.00027123,2]
[358544140,1745243452907,-500.0,0.00027123,2]
[358544142,1745243452916,-1438.62,0.00027123,2]
[358544144,1745243452925,-724.52,0.00027204,2]
[358544146,1745243452934,-756.94,0.00027204,2]
[358544148,1745243452944,-596.58,0.00027204,2]
[358544150,1745243452955,-6568.46,0.00027205,2]
[358544152,1745243452964,-1000.0,0.00027321,2]
[358544154,1745243452973,-264.179442,0.00027393,7]
[358544156,1745243452981,-167.694079,0.00027397,7]
[358544158,1745243452991,-151.0,0.00027397,7]
[358544168,1745243453088,-500.0,0.00027397,14]
[358544170,1745243453098,-500.0,0.00027397,14]
[358544172,1745243453107,-500.0,0.00027397,14]
[358544174,1745243453117,-500.0,0.00027397,14]
[358544176,1745243453127,-500.0,0.00027397,14]
[358544178,1745243453136,-500.0,0.00027397,14]
[358544180,1745243453145,-500.0,0.00027397,14]
[358544182,1745243453155,-500.0,0.00027397,14]
[358544184,1745243453164,-500.0,0.00027397,14]
[358544186,1745243453173,-500.0,0.00027397,14]
[358544188,1745243453182,-497.42075146,0.00027397,14]
[358544190,1745243453191,-926.17468584,0.00027397,5]
[358544192,1745243453200,-1000.0,0.00027397,5]
[358544194,1745243453209,-1000.0,0.00027397,5]
[358544196,1745243453218,-1000.0,0.00027397,5]
[358544198,1745243453227,-1000.0,0.00027397,5]
[358544200,1745243453236,-1000.0,0.00027397,5]
[358544202,1745243453245,-359.91214918,0.00027397,5]
[358544204,1745243453254,-10000.0,0.00027397,2]
[358544206,1745243453263,-10000.0,0.00027397,3]
[358544208,1745243453273,-10000.0,0.00027397,4]
[358544210,1745243453282,-10000.0,0.00027397,5]
[358544212,1745243453291,-10000.0,0.00027397,6]
[358544214,1745243453300,-3583.25230198,0.00027397,7]
[358544216,1745243453309,-5202.56,0.00027397,2]
[358544218,1745243453318,-1365.07,0.00027397,2]
[358544220,1745243453328,-849.44,0.00027397,2]
[358544222,1745243453338,-2919.09,0.00027397,2]
[358544224,1745243453347,-752.53,0.00027397,2]
[358544226,1745243453356,-736.91,0.00027397,2]
[358544228,1745243453365,-500.0,0.00027397,2]
[358544230,1745243453374,-500.0,0.00027397,2]
[358544232,1745243453383,-1438.62,0.00027397,2]
[358544234,1745243453392,-1185.924344,0.00027397,2]
[358544236,1745243453401,-362.475859,0.00027397,120]
[358544238,1745243453410,-160.0,0.000274,3]
[358544240,1745243453419,-160.0,0.000274,3]
[358544242,1745243453428,-160.0,0.000274,3]
[358544244,1745243453437,-420.65680271,0.000274,3]
[358544246,1745243453446,-1000.0,0.00027452,5]
[358544248,1745243453455,-1000.0,0.00027452,5]
[358544250,1745243453464,-1000.0,0.00027452,5]
[358544252,1745243453474,-1000.0,0.00027452,5]
[358544254,1745243453483,-151.0,0.00027476,7]
[358544256,1745243453493,-151.0,0.00027476,7]
[358544258,1745243453502,-151.0,0.00027476,7]
[358544260,1745243453511,-277.921653,0.00027476,7]
[358544262,1745243453520,-1465.77186,0.00027476,2]
[358544264,1745243453530,-1465.77186,0.00027476,2]
[358544266,1745243453539,-724.52,0.00027478,2]
[358544268,1745243453548,-756.94,0.00027478,2]
[358544270,1745243453558,-596.58,0.00027478,2]